[Event "Betsys MČR v online bleskovém šachu 2021"]
[Site "Chess.com"]
[Date "2021.04.17"]
[Round "5"]
[White "ZdenekRomanek"]
[Black "vadoto"]
[Result "0-1"]
[WhiteElo "1589"]
[BlackElo "1365"]
[TimeControl "180+1"]
[EndTime "9:45:51 PDT"]
[Termination "Uživatel vadoto zvítězil po vzdání soupeře"]

1. d4 {[%clk 0:03:00.9]} 1... d5 {[%clk 0:02:59.6]} 2. c4 {[%clk 0:03:00.2]}
2... e6 {[%clk 0:02:59.9]} 3. Nc3 {[%clk 0:02:59.3]} 3... Nf6 {[%clk 0:02:59.6]}
4. Nf3 {[%clk 0:02:58.9]} 4... Nbd7 {[%clk 0:02:59.1]} 5. e3 {[%clk 0:02:58.3]}
5... Be7 {[%clk 0:02:57.8]} 6. Bd3 {[%clk 0:02:57.5]} 6... O-O {[%clk
0:02:57.2]} 7. O-O {[%clk 0:02:57]} 7... b6 {[%clk 0:02:56.6]} 8. cxd5 {[%clk
0:02:55.7]} 8... exd5 {[%clk 0:02:56]} 9. a3 {[%clk 0:02:53.5]} 9... Bb7 {[%clk
0:02:55.4]} 10. b4 {[%clk 0:02:52.2]} 10... c5 {[%clk 0:02:50.6]} 11. bxc5
{[%clk 0:02:50.7]} 11... bxc5 {[%clk 0:02:50.2]} 12. Rb1 {[%clk 0:02:45.4]}
12... Rb8 {[%clk 0:02:43.6]} 13. Bc2 {[%clk 0:02:33.4]} 13... c4 {[%clk
0:02:34.4]} 14. Re1 {[%clk 0:02:29.6]} 14... Nb6 {[%clk 0:02:28.4]} 15. e4
{[%clk 0:02:22.9]} 15... dxe4 {[%clk 0:02:23.1]} 16. Nxe4 {[%clk 0:02:21.7]}
16... Nxe4 {[%clk 0:02:13.2]} 17. Bxe4 {[%clk 0:02:20.4]} 17... Bxe4 {[%clk
0:02:11.3]} 18. Rxe4 {[%clk 0:02:19.4]} 18... Bf6 {[%clk 0:02:01.6]} 19. Rg4
{[%clk 0:02:09.8]} 19... Re8 {[%clk 0:01:54.4]} 20. h3 {[%clk 0:02:06.2]} 20...
Qd5 {[%clk 0:01:49.4]} 21. a4 {[%clk 0:01:58]} 21... Qa5 {[%clk 0:01:40.1]} 22.
Rb5 {[%clk 0:01:51.9]} 22... Qxa4 {[%clk 0:01:25.8]} 23. Qxa4 {[%clk 0:01:48.7]}
23... Nxa4 {[%clk 0:01:25.3]} 24. Ra5 {[%clk 0:01:32.3]} 24... Nc3 {[%clk
0:01:17.9]} 25. Bf4 {[%clk 0:01:26.4]} 25... Ne2+ {[%clk 0:01:13.6]} 26. Kh2
{[%clk 0:01:23.7]} 26... Nxf4 {[%clk 0:01:13]} 27. Rxf4 {[%clk 0:01:22.3]} 27...
c3 {[%clk 0:01:00.7]} 28. Rxa7 {[%clk 0:01:19.3]} 28... c2 {[%clk 0:00:57.8]}
29. Rc7 {[%clk 0:01:17.8]} 29... Rec8 {[%clk 0:00:52.2]} 30. Rxc8+ {[%clk
0:01:06.4]} 30... Rxc8 {[%clk 0:00:50.7]} 0-1

[Event "Betsys MČR v online bleskovém šachu 2021"]
[Site "Chess.com"]
[Date "2021.04.17"]
[Round "5"]
[White "Countryside_58"]
[Black "Dasty78"]
[Result "1-0"]
[WhiteElo "2431"]
[BlackElo "2016"]
[TimeControl "180+1"]
[EndTime "9:45:54 PDT"]
[Termination "Uživatel Countryside_58 zvítězil na čas"]

1. h4 {[%clk 0:03:00.9]} 1... e5 {[%clk 0:02:58]} 2. h5 {[%clk 0:03:00.8]} 2...
h6 {[%clk 0:02:57.2]} 3. c3 {[%clk 0:03:01.7]} 3... d5 {[%clk 0:02:56.7]} 4. d4
{[%clk 0:03:02.2]} 4... exd4 {[%clk 0:02:56.9]} 5. cxd4 {[%clk 0:03:02.9]} 5...
c5 {[%clk 0:02:57.1]} 6. Nf3 {[%clk 0:03:01.9]} 6... Nc6 {[%clk 0:02:56.6]} 7.
Nc3 {[%clk 0:03:01.8]} 7... Bg4 {[%clk 0:02:55.6]} 8. e3 {[%clk 0:02:54.3]} 8...
Nf6 {[%clk 0:02:52.8]} 9. Qb3 {[%clk 0:02:46.6]} 9... Bxf3 {[%clk 0:02:02.7]}
10. gxf3 {[%clk 0:02:45.3]} 10... cxd4 {[%clk 0:02:02.4]} 11. Qxb7 {[%clk
0:02:31.1]} 11... Qc8 {[%clk 0:02:02.2]} 12. Ba6 {[%clk 0:02:24]} 12... dxc3
{[%clk 0:01:03.5]} 13. Qxc8+ {[%clk 0:02:22.2]} 13... Rxc8 {[%clk 0:01:03.1]}
14. Bxc8 {[%clk 0:02:22.2]} 14... Bb4 {[%clk 0:01:02.5]} 15. Ke2 {[%clk
0:02:19.5]} 15... O-O {[%clk 0:00:58.5]} 16. Bf5 {[%clk 0:02:16.1]} 16... d4
{[%clk 0:00:56.6]} 17. a3 {[%clk 0:02:12.9]} 17... Ba5 {[%clk 0:00:48.7]} 18.
bxc3 {[%clk 0:02:06.4]} 18... dxc3 {[%clk 0:00:42]} 19. Rb1 {[%clk 0:01:57.9]}
19... Re8 {[%clk 0:00:41.3]} 20. Kf1 {[%clk 0:01:51.8]} 20... Rd8 {[%clk
0:00:32.7]} 21. Kg2 {[%clk 0:01:50.2]} 21... Ne5 {[%clk 0:00:24.6]} 22. Rb5
{[%clk 0:01:45]} 22... Bc7 {[%clk 0:00:21.1]} 23. Rc5 {[%clk 0:01:44.1]} 23...
Bb8 {[%clk 0:00:18.7]} 24. Rxc3 {[%clk 0:01:43.4]} 24... a6 {[%clk 0:00:11.6]}
25. f4 {[%clk 0:01:43.3]} 25... Ned7 {[%clk 0:00:09.8]} 26. Rd3 {[%clk
0:01:39.9]} 26... Kf8 {[%clk 0:00:07.8]} 27. Rhd1 {[%clk 0:01:36.8]} 27... Ke7
{[%clk 0:00:06.3]} 28. a4 {[%clk 0:01:36.1]} 28... Bc7 {[%clk 0:00:01.5]} 29.
Ba3+ {[%clk 0:01:35.7]} 1-0

[Event "Betsys MČR v online bleskovém šachu 2021"]
[Site "Chess.com"]
[Date "2021.04.17"]
[Round "5"]
[White "Molefancier"]
[Black "Anyna"]
[Result "1-0"]
[WhiteElo "1066"]
[BlackElo "750"]
[TimeControl "180+1"]
[EndTime "9:45:54 PDT"]
[Termination "Uživatel Molefancier zvítězil po vzdání soupeře"]

1. e4 {[%clk 0:02:50.8]} 1... d5 {[%clk 0:02:58.4]} 2. exd5 {[%clk 0:02:49.7]}
2... Qxd5 {[%clk 0:02:57.7]} 3. Nc3 {[%clk 0:02:50.2]} 3... Qa5 {[%clk
0:02:57.8]} 4. d4 {[%clk 0:02:47.6]} 4... Nf6 {[%clk 0:02:54.5]} 5. Bd2 {[%clk
0:02:45.5]} 5... Nc6 {[%clk 0:02:51.2]} 6. Nf3 {[%clk 0:02:44.7]} 6... Bg4
{[%clk 0:02:46.3]} 7. Be2 {[%clk 0:02:38.2]} 7... O-O-O {[%clk 0:02:42.7]} 8.
O-O {[%clk 0:02:33.6]} 8... e6 {[%clk 0:02:35.1]} 9. Ne4 {[%clk 0:02:15.5]} 9...
Qb6 {[%clk 0:02:29]} 10. Nc5 {[%clk 0:02:13.5]} 10... Bxf3 {[%clk 0:02:13.7]}
11. Bxf3 {[%clk 0:02:07.3]} 11... Nxd4 {[%clk 0:02:04.1]} 12. Nd3 {[%clk
0:02:02.3]} 12... Nxf3+ {[%clk 0:01:34.4]} 13. Qxf3 {[%clk 0:01:57.9]} 13... Bc5
{[%clk 0:01:24.8]} 14. Nxc5 {[%clk 0:01:54.3]} 14... Qxc5 {[%clk 0:01:21.2]} 15.
Be3 {[%clk 0:01:51.7]} 15... Qxc2 {[%clk 0:01:07.5]} 16. Rab1 {[%clk 0:01:44.6]}
16... Kb8 {[%clk 0:00:46.2]} 17. Rfc1 {[%clk 0:01:43.6]} 17... Qd3 {[%clk
0:00:21.3]} 18. Qg3 {[%clk 0:01:29.1]} 18... Nd5 {[%clk 0:00:19.2]} 19. Rd1
{[%clk 0:01:23.2]} 19... Nxe3 {[%clk 0:00:13.9]} 20. Rxd3 {[%clk 0:01:20.6]}
20... Rxd3 {[%clk 0:00:13.3]} 21. fxe3 {[%clk 0:01:18.2]} 21... Rhd8 {[%clk
0:00:10.6]} 22. Kf2 {[%clk 0:01:14.2]} 22... Rd1 {[%clk 0:00:10.8]} 23. Rxd1
{[%clk 0:01:13.1]} 1-0

[Event "Betsys MČR v online bleskovém šachu 2021"]
[Site "Chess.com"]
[Date "2021.04.17"]
[Round "5"]
[White "Tobish"]
[Black "matej-c"]
[Result "1-0"]
[WhiteElo "1693"]
[BlackElo "1959"]
[TimeControl "180+1"]
[EndTime "9:45:58 PDT"]
[Termination "Uživatel Tobish zvítězil po vzdání soupeře"]

1. e4 {[%clk 0:03:00.9]} 1... e5 {[%clk 0:02:59.5]} 2. Nf3 {[%clk 0:03:00.9]}
2... Nf6 {[%clk 0:02:58.9]} 3. Nxe5 {[%clk 0:02:58.6]} 3... d6 {[%clk
0:02:58.5]} 4. Nxf7 {[%clk 0:02:49.9]} 4... Kxf7 {[%clk 0:02:59.4]} 5. d4 {[%clk
0:02:50.2]} 5... c5 {[%clk 0:02:40.6]} 6. Bc4+ {[%clk 0:02:47.8]} 6... Be6
{[%clk 0:02:38.2]} 7. Bxe6+ {[%clk 0:02:47.4]} 7... Kxe6 {[%clk 0:02:37.1]} 8.
O-O {[%clk 0:02:45.7]} 8... Nc6 {[%clk 0:02:31.1]} 9. d5+ {[%clk 0:02:44.9]}
9... Kf7 {[%clk 0:02:27.8]} 10. dxc6 {[%clk 0:02:44.9]} 10... bxc6 {[%clk
0:02:28.7]} 11. Nc3 {[%clk 0:02:44.4]} 11... Be7 {[%clk 0:02:25.9]} 12. Re1
{[%clk 0:02:43.7]} 12... Rf8 {[%clk 0:02:11.4]} 13. e5 {[%clk 0:02:41.7]} 13...
dxe5 {[%clk 0:02:10.6]} 14. Qe2 {[%clk 0:02:36.1]} 14... Bd6 {[%clk 0:02:05.5]}
15. Qc4+ {[%clk 0:02:33]} 15... Ke7 {[%clk 0:01:57.7]} 16. Bf4 {[%clk
0:02:30.5]} 16... Nd7 {[%clk 0:01:37.8]} 17. Rad1 {[%clk 0:02:08.2]} 17... Rxf4
{[%clk 0:01:31.1]} 18. Qxf4 {[%clk 0:02:06.1]} 18... Qf8 {[%clk 0:01:31.1]} 19.
Qg5+ {[%clk 0:02:02.7]} 19... Qf6 {[%clk 0:01:22.1]} 20. Qg4 {[%clk 0:01:51.5]}
20... Bc7 {[%clk 0:01:11.1]} 21. Rxd7+ {[%clk 0:01:49]} 21... Kf8 {[%clk
0:01:09.1]} 22. Rxc7 {[%clk 0:01:45.8]} 22... Rd8 {[%clk 0:01:08.7]} 23. Ne4
{[%clk 0:01:42.5]} 23... Qh6 {[%clk 0:01:01.2]} 24. Qf5+ {[%clk 0:01:40.2]}
24... Kg8 {[%clk 0:00:59]} 25. Qf7+ {[%clk 0:01:34.6]} 25... Kh8 {[%clk
0:00:57.8]} 26. Nd6 {[%clk 0:01:28.7]} 26... Qg5 {[%clk 0:00:40.9]} 27. f4
{[%clk 0:01:18.5]} 27... Qh6 {[%clk 0:00:32.1]} 28. Rxe5 {[%clk 0:01:16.4]}
28... Rg8 {[%clk 0:00:22.7]} 29. Qxg8+ {[%clk 0:01:14.4]} 1-0

[Event "Betsys MČR v online bleskovém šachu 2021"]
[Site "Chess.com"]
[Date "2021.04.17"]
[Round "5"]
[White "Loveforever_Pepi"]
[Black "zarathutra"]
[Result "1-0"]
[WhiteElo "2284"]
[BlackElo "1824"]
[TimeControl "180+1"]
[EndTime "9:46:00 PDT"]
[Termination "Uživatel Loveforever_Pepi zvítězil na čas"]

1. e4 {[%clk 0:03:00.9]} 1... e5 {[%clk 0:02:59.4]} 2. Nf3 {[%clk 0:02:59.9]}
2... Nc6 {[%clk 0:02:59.5]} 3. Bb5 {[%clk 0:02:56.8]} 3... a6 {[%clk 0:02:59.2]}
4. Ba4 {[%clk 0:02:56.9]} 4... Nf6 {[%clk 0:02:59.3]} 5. d4 {[%clk 0:02:57]}
5... Nxe4 {[%clk 0:02:56.7]} 6. Qe2 {[%clk 0:02:56.3]} 6... d5 {[%clk
0:02:47.4]} 7. Nxe5 {[%clk 0:02:54.9]} 7... b5 {[%clk 0:01:27.2]} 8. Nxc6 {[%clk
0:02:51.7]} 8... Qf6 {[%clk 0:01:18.5]} 9. Bb3 {[%clk 0:02:44.8]} 9... Qxc6
{[%clk 0:01:09.5]} 10. f3 {[%clk 0:02:43.8]} 10... Bf5 {[%clk 0:00:59.8]} 11.
fxe4 {[%clk 0:02:40.5]} 11... Bxe4 {[%clk 0:01:00.1]} 12. Nd2 {[%clk 0:02:35.5]}
12... O-O-O {[%clk 0:00:56.8]} 13. Nxe4 {[%clk 0:02:32.6]} 13... dxe4 {[%clk
0:00:56.5]} 14. Be3 {[%clk 0:02:23.3]} 14... f5 {[%clk 0:00:18.6]} 15. O-O-O
{[%clk 0:02:21.6]} 15... a5 {[%clk 0:00:17.3]} 16. a3 {[%clk 0:02:17.1]} 16...
b4 {[%clk 0:00:15]} 17. a4 {[%clk 0:02:13.1]} 17... g6 {[%clk 0:00:12.1]} 18. g3
{[%clk 0:02:12.2]} 18... Bg7 {[%clk 0:00:10.3]} 19. Qc4 {[%clk 0:02:08.4]} 19...
Qb6 {[%clk 0:00:08.8]} 20. Kb1 {[%clk 0:02:04.2]} 20... Rd6 {[%clk 0:00:07.1]}
21. Rd2 {[%clk 0:01:55.8]} 21... Rhd8 {[%clk 0:00:06.6]} 22. Rhd1 {[%clk
0:01:54.9]} 22... Qb7 {[%clk 0:00:03.6]} 23. Bf4 {[%clk 0:01:45.1]} 23... R6d7
{[%clk 0:00:03.7]} 24. d5 {[%clk 0:01:38.5]} 24... Qa7 {[%clk 0:00:01.7]} 25. d6
{[%clk 0:01:29.8]} 25... c5 {[%clk 0:00:01.9]} 26. Rd5 {[%clk 0:01:22.9]} 1-0

[Event "Betsys MČR v online bleskovém šachu 2021"]
[Site "Chess.com"]
[Date "2021.04.17"]
[Round "5"]
[White "DavidekIII"]
[Black "MametevArtem097"]
[Result "0-1"]
[WhiteElo "2200"]
[BlackElo "2000"]
[TimeControl "180+1"]
[EndTime "9:46:01 PDT"]
[Termination "Uživatel MametevArtem097 zvítězil na čas"]

1. d4 {[%clk 0:03:00.9]} 1... Nf6 {[%clk 0:02:56]} 2. c4 {[%clk 0:03:00.2]} 2...
e6 {[%clk 0:02:56.3]} 3. Nc3 {[%clk 0:02:59.4]} 3... Bb4 {[%clk 0:02:56.8]} 4.
e3 {[%clk 0:02:59.5]} 4... O-O {[%clk 0:02:56.6]} 5. Bd3 {[%clk 0:02:59.2]} 5...
c5 {[%clk 0:02:57.2]} 6. Ne2 {[%clk 0:02:54.1]} 6... d5 {[%clk 0:02:57.4]} 7.
cxd5 {[%clk 0:02:52.8]} 7... exd5 {[%clk 0:02:56.7]} 8. O-O {[%clk 0:02:50.2]}
8... cxd4 {[%clk 0:02:52.4]} 9. exd4 {[%clk 0:02:43.9]} 9... Nc6 {[%clk
0:02:51.3]} 10. Bg5 {[%clk 0:02:25.8]} 10... h6 {[%clk 0:02:49.6]} 11. Bh4
{[%clk 0:02:22.2]} 11... Be7 {[%clk 0:02:46.9]} 12. Rc1 {[%clk 0:02:07.9]} 12...
Be6 {[%clk 0:02:39.6]} 13. Bb1 {[%clk 0:02:04.7]} 13... Ne4 {[%clk 0:02:25.9]}
14. Bxe7 {[%clk 0:01:26.5]} 14... Nxc3 {[%clk 0:02:25]} 15. Nxc3 {[%clk
0:00:59]} 15... Qxe7 {[%clk 0:02:20.3]} 16. Qd2 {[%clk 0:00:43.4]} 16... Qf6
{[%clk 0:02:16.4]} 17. Rfd1 {[%clk 0:00:37.1]} 17... Rad8 {[%clk 0:02:11.3]} 18.
a3 {[%clk 0:00:24.2]} 18... Bg4 {[%clk 0:02:09.1]} 19. f3 {[%clk 0:00:22.1]}
19... Be6 {[%clk 0:02:09.2]} 20. Qd3 {[%clk 0:00:21.1]} 20... g6 {[%clk
0:02:08.7]} 21. Ne2 {[%clk 0:00:16.7]} 21... Bf5 {[%clk 0:02:05.9]} 22. Qd2
{[%clk 0:00:16.8]} 22... Bxb1 {[%clk 0:02:05.6]} 23. Rxb1 {[%clk 0:00:17.7]}
23... Rfe8 {[%clk 0:02:04.6]} 24. Re1 {[%clk 0:00:13.2]} 24... Re7 {[%clk
0:01:53.9]} 25. Rbd1 {[%clk 0:00:06.5]} 25... Rde8 {[%clk 0:01:51.4]} 26. Kf1
{[%clk 0:00:03]} 26... Qh4 {[%clk 0:01:43.8]} 27. Kg1 {[%clk 0:00:02.1]} 27...
Nxd4 {[%clk 0:01:27.6]} 0-1

[Event "Betsys MČR v online bleskovém šachu 2021"]
[Site "Chess.com"]
[Date "2021.04.17"]
[Round "5"]
[White "ReceptiveYoyo"]
[Black "psvoboda72"]
[Result "1-0"]
[WhiteElo "1339"]
[BlackElo "1715"]
[TimeControl "180+1"]
[EndTime "9:46:01 PDT"]
[Termination "Uživatel ReceptiveYoyo zvítězil matem"]

1. d4 {[%clk 0:03:00.9]} 1... Nf6 {[%clk 0:02:58.1]} 2. c4 {[%clk 0:03:00.8]}
2... g6 {[%clk 0:02:58.5]} 3. e3 {[%clk 0:02:59.2]} 3... Bg7 {[%clk 0:02:58.8]}
4. Nf3 {[%clk 0:02:56.9]} 4... d6 {[%clk 0:02:59.2]} 5. Bd3 {[%clk 0:02:56.4]}
5... O-O {[%clk 0:02:58.8]} 6. O-O {[%clk 0:02:56.1]} 6... Nbd7 {[%clk
0:02:55.2]} 7. Nc3 {[%clk 0:02:56.2]} 7... c6 {[%clk 0:02:55.4]} 8. e4 {[%clk
0:02:52.7]} 8... Qc7 {[%clk 0:02:48.7]} 9. Bg5 {[%clk 0:02:50.2]} 9... h6 {[%clk
0:02:46.6]} 10. Be3 {[%clk 0:02:48.3]} 10... Ng4 {[%clk 0:02:42.7]} 11. Qd2
{[%clk 0:02:42.7]} 11... e5 {[%clk 0:02:37.5]} 12. d5 {[%clk 0:02:39.4]} 12...
Nxe3 {[%clk 0:02:32.5]} 13. Qxe3 {[%clk 0:02:38.7]} 13... Nc5 {[%clk 0:02:32.3]}
14. b4 {[%clk 0:02:34.5]} 14... Nxd3 {[%clk 0:02:31.3]} 15. Qxd3 {[%clk
0:02:34.8]} 15... f5 {[%clk 0:02:31.1]} 16. Rfe1 {[%clk 0:02:18.4]} 16... fxe4
{[%clk 0:02:28.5]} 17. Nxe4 {[%clk 0:02:17.2]} 17... Bf5 {[%clk 0:02:27.1]} 18.
Nh4 {[%clk 0:01:57.8]} 18... Bxe4 {[%clk 0:02:15]} 19. Rxe4 {[%clk 0:01:58.7]}
19... Qf7 {[%clk 0:02:06.8]} 20. Qf3 {[%clk 0:01:51.7]} 20... Qd7 {[%clk
0:01:46.3]} 21. Qd3 {[%clk 0:01:40.7]} 21... Rf6 {[%clk 0:01:38.8]} 22. dxc6
{[%clk 0:01:36.4]} 22... bxc6 {[%clk 0:01:36.1]} 23. b5 {[%clk 0:01:31.1]} 23...
cxb5 {[%clk 0:01:32.4]} 24. cxb5 {[%clk 0:01:32]} 24... Raf8 {[%clk 0:01:25.5]}
25. Nf3 {[%clk 0:01:29.1]} 25... Rf4 {[%clk 0:01:09.8]} 26. Rae1 {[%clk
0:01:24.5]} 26... d5 {[%clk 0:01:05.5]} 27. Rxf4 {[%clk 0:01:19.8]} 27... exf4
{[%clk 0:01:03.1]} 28. Qxg6 {[%clk 0:01:16.1]} 28... Qxb5 {[%clk 0:01:00.6]} 29.
Re7 {[%clk 0:01:12.3]} 29... Rf7 {[%clk 0:00:24.8]} 30. Qxf7+ {[%clk 0:01:10.1]}
30... Kh8 {[%clk 0:00:23.5]} 31. Qxg7# {[%clk 0:01:11]} 1-0

[Event "Betsys MČR v online bleskovém šachu 2021"]
[Site "Chess.com"]
[Date "2021.04.17"]
[Round "5"]
[White "fortale"]
[Black "tudlenudle"]
[Result "1/2-1/2"]
[WhiteElo "2337"]
[BlackElo "1936"]
[TimeControl "180+1"]
[EndTime "9:46:02 PDT"]
[Termination "Remíza dohodou"]

1. e4 {[%clk 0:03:00.9]} 1... e5 {[%clk 0:02:59.5]} 2. Nf3 {[%clk 0:03:01]} 2...
Nc6 {[%clk 0:02:59.9]} 3. c3 {[%clk 0:03:01.5]} 3... d5 {[%clk 0:02:53.4]} 4.
Qa4 {[%clk 0:03:00.8]} 4... Nf6 {[%clk 0:02:32.3]} 5. exd5 {[%clk 0:02:48.9]}
5... Qxd5 {[%clk 0:02:31.1]} 6. Bb5 {[%clk 0:02:41.1]} 6... Bd7 {[%clk
0:02:27.4]} 7. O-O {[%clk 0:02:40.5]} 7... a6 {[%clk 0:02:21.6]} 8. Bc4 {[%clk
0:02:40.4]} 8... Qd6 {[%clk 0:02:15.2]} 9. Qd1 {[%clk 0:02:07.8]} 9... Be7
{[%clk 0:02:05.3]} 10. d4 {[%clk 0:02:01.2]} 10... exd4 {[%clk 0:01:56.7]} 11.
Nxd4 {[%clk 0:02:01]} 11... O-O {[%clk 0:01:53.3]} 12. Be2 {[%clk 0:01:41.2]}
12... Nxd4 {[%clk 0:01:48.2]} 13. Qxd4 {[%clk 0:01:40.6]} 13... Qxd4 {[%clk
0:01:45.5]} 14. cxd4 {[%clk 0:01:41.5]} 14... Bc6 {[%clk 0:01:43.8]} 15. Nc3
{[%clk 0:01:40.9]} 15... Rad8 {[%clk 0:01:43.3]} 16. Be3 {[%clk 0:01:39.4]}
16... Rfe8 {[%clk 0:01:39.9]} 17. Rfd1 {[%clk 0:01:37.1]} 17... Nd5 {[%clk
0:01:40]} 18. Nxd5 {[%clk 0:01:34.4]} 18... Bxd5 {[%clk 0:01:39.7]} 19. Rac1
{[%clk 0:01:31.9]} 19... c6 {[%clk 0:01:38.8]} 20. b3 {[%clk 0:01:23]} 20... Bf6
{[%clk 0:01:38.9]} 21. Bc4 {[%clk 0:01:19.5]} 21... h6 {[%clk 0:01:29.3]} 22.
Kf1 {[%clk 0:01:18.6]} 22... Bg5 {[%clk 0:01:20.3]} 23. Bxg5 {[%clk 0:00:51.7]}
23... hxg5 {[%clk 0:01:21.2]} 24. Bxd5 {[%clk 0:00:51.7]} 24... Rxd5 {[%clk
0:01:20.3]} 25. Rc5 {[%clk 0:00:50.8]} 25... Red8 {[%clk 0:01:16.5]} 26. Rxd5
{[%clk 0:00:50.1]} 26... Rxd5 {[%clk 0:01:17.4]} 27. Ke2 {[%clk 0:00:50.4]}
27... f5 {[%clk 0:01:11.7]} 28. Ke3 {[%clk 0:00:50.3]} 28... Kf7 {[%clk
0:01:12.2]} 29. Rc1 {[%clk 0:00:46.5]} 29... Ke6 {[%clk 0:01:10.1]} 30. Rc4
{[%clk 0:00:44.8]} 30... Ra5 {[%clk 0:01:06.2]} 31. a4 {[%clk 0:00:43.9]} 31...
Rd5 {[%clk 0:01:06.3]} 32. g3 {[%clk 0:00:43.1]} 32... Kd6 {[%clk 0:00:58.2]}
1/2-1/2

[Event "Betsys MČR v online bleskovém šachu 2021"]
[Site "Chess.com"]
[Date "2021.04.17"]
[Round "5"]
[White "Jacques_se_mas"]
[Black "Zelezny1984"]
[Result "1-0"]
[WhiteElo "1750"]
[BlackElo "2048"]
[TimeControl "180+1"]
[EndTime "9:46:06 PDT"]
[Termination "Uživatel Jacques_se_mas zvítězil matem"]

1. d4 {[%clk 0:03:00.9]} 1... e6 {[%clk 0:03:00.2]} 2. e4 {[%clk 0:02:57.1]}
2... d5 {[%clk 0:03:00.3]} 3. Nd2 {[%clk 0:02:53.7]} 3... dxe4 {[%clk
0:03:01.2]} 4. Nxe4 {[%clk 0:02:54.2]} 4... Bd7 {[%clk 0:03:01.5]} 5. c3 {[%clk
0:02:54]} 5... Bc6 {[%clk 0:03:00.1]} 6. Bd3 {[%clk 0:02:53.8]} 6... Nd7 {[%clk
0:02:59.4]} 7. Nf3 {[%clk 0:02:54.2]} 7... Ngf6 {[%clk 0:02:59.8]} 8. Bg5 {[%clk
0:02:51.6]} 8... Be7 {[%clk 0:02:59.5]} 9. Nxf6+ {[%clk 0:02:50.3]} 9... Nxf6
{[%clk 0:03:00.4]} 10. Qc2 {[%clk 0:02:48.3]} 10... h6 {[%clk 0:02:51.7]} 11.
Bxf6 {[%clk 0:02:44.6]} 11... Bxf6 {[%clk 0:02:51.2]} 12. O-O-O {[%clk
0:02:45.2]} 12... a5 {[%clk 0:02:05.5]} 13. Rhg1 {[%clk 0:02:42.6]} 13... O-O
{[%clk 0:01:49.1]} 14. Ne5 {[%clk 0:02:42.6]} 14... Be8 {[%clk 0:01:37.3]} 15.
g4 {[%clk 0:02:41.2]} 15... b5 {[%clk 0:01:32.1]} 16. f4 {[%clk 0:02:40.9]}
16... b4 {[%clk 0:01:30.5]} 17. g5 {[%clk 0:02:35.4]} 17... hxg5 {[%clk
0:01:30.1]} 18. fxg5 {[%clk 0:02:35.8]} 18... Bxg5+ {[%clk 0:01:31]} 19. Kb1
{[%clk 0:02:35.6]} 19... bxc3 {[%clk 0:01:29.5]} 20. Qg2 {[%clk 0:02:32.3]}
20... Bh6 {[%clk 0:01:12.5]} 21. Qh3 {[%clk 0:02:30.6]} 21... Kh8 {[%clk
0:01:01.7]} 22. Rxg7 {[%clk 0:01:44.9]} 22... Kxg7 {[%clk 0:01:02.6]} 23. Rg1+
{[%clk 0:01:43.8]} 23... Bg5 {[%clk 0:00:39.6]} 24. Qh7+ {[%clk 0:01:40]} 24...
Kf6 {[%clk 0:00:39.8]} 25. Rxg5 {[%clk 0:01:20.9]} 25... Kxg5 {[%clk 0:00:40.7]}
26. Qg7+ {[%clk 0:01:20.1]} 26... Kf4 {[%clk 0:00:31.9]} 27. Qg4+ {[%clk
0:01:15.2]} 27... Ke3 {[%clk 0:00:30.7]} 28. Qe4+ {[%clk 0:01:12.1]} 28... Kf2
{[%clk 0:00:29.3]} 29. Qe2+ {[%clk 0:01:11.4]} 29... Kg1 {[%clk 0:00:26.9]} 30.
Nf3+ {[%clk 0:01:10.1]} 30... Kh1 {[%clk 0:00:22.4]} 31. Qf1# {[%clk 0:01:09.7]}
1-0

[Event "Betsys MČR v online bleskovém šachu 2021"]
[Site "Chess.com"]
[Date "2021.04.17"]
[Round "5"]
[White "DenisaD2008"]
[Black "Skalicky"]
[Result "0-1"]
[WhiteElo "963"]
[BlackElo "969"]
[TimeControl "180+1"]
[EndTime "9:46:07 PDT"]
[Termination "Uživatel Skalicky zvítězil matem"]

1. e4 {[%clk 0:03:00.9]} 1... c5 {[%clk 0:02:59.6]} 2. Nf3 {[%clk 0:03:00.8]}
2... e6 {[%clk 0:02:59.1]} 3. Bc4 {[%clk 0:02:59.9]} 3... d5 {[%clk 0:02:56.3]}
4. exd5 {[%clk 0:02:59.6]} 4... exd5 {[%clk 0:02:55.8]} 5. Bb5+ {[%clk
0:02:59.2]} 5... Bd7 {[%clk 0:02:55.1]} 6. Bxd7+ {[%clk 0:02:58]} 6... Nxd7
{[%clk 0:02:53.5]} 7. d4 {[%clk 0:02:58.2]} 7... cxd4 {[%clk 0:02:52.6]} 8. Nxd4
{[%clk 0:02:58.1]} 8... Ngf6 {[%clk 0:02:51.6]} 9. Bg5 {[%clk 0:02:57.5]} 9...
Be7 {[%clk 0:02:45.9]} 10. Qe2 {[%clk 0:02:56.7]} 10... O-O {[%clk 0:02:40.6]}
11. Nc3 {[%clk 0:02:54.4]} 11... Re8 {[%clk 0:02:22.4]} 12. O-O-O {[%clk
0:02:52.9]} 12... Bb4 {[%clk 0:02:05.5]} 13. Qd3 {[%clk 0:02:47.7]} 13... Bxc3
{[%clk 0:02:01.4]} 14. Qxc3 {[%clk 0:02:47.1]} 14... Rc8 {[%clk 0:01:47.3]} 15.
Qd3 {[%clk 0:02:45.1]} 15... Nb6 {[%clk 0:01:36.7]} 16. h4 {[%clk 0:02:40]}
16... h6 {[%clk 0:01:34]} 17. Bf4 {[%clk 0:02:35.9]} 17... Nc4 {[%clk
0:01:20.9]} 18. Qg3 {[%clk 0:02:26.3]} 18... Qb6 {[%clk 0:00:46.8]} 19. b3
{[%clk 0:02:19.2]} 19... Ne5 {[%clk 0:00:22.3]} 20. Bxh6 {[%clk 0:02:06.7]}
20... Ng6 {[%clk 0:00:19.8]} 21. Be3 {[%clk 0:02:00.5]} 21... Ne4 {[%clk
0:00:17.8]} 22. Qg4 {[%clk 0:01:51.2]} 22... Nf6 {[%clk 0:00:09.5]} 23. Qg5
{[%clk 0:01:47.2]} 23... Ne4 {[%clk 0:00:06.7]} 24. Qg4 {[%clk 0:01:41.6]} 24...
Qb4 {[%clk 0:00:04.2]} 25. h5 {[%clk 0:01:30.8]} 25... Qa3+ {[%clk 0:00:03.6]}
26. Kb1 {[%clk 0:01:25.5]} 26... Nc3+ {[%clk 0:00:01.5]} 27. Ka1 {[%clk
0:01:21.5]} 27... Qxa2# {[%clk 0:00:01.7]} 0-1